fUSD/lending_fUSD_20250828
["ID","MTS","AMOUNT","RATE_DAILY","PERIOD"]
[381822529,1756359076937,-400.0,0.00020738,2]
[381822530,1756359076946,-1453.82,0.00020738,2]
[381822531,1756359076956,-400.0,0.00020738,2]
[381822532,1756359076964,-400.0,0.00020738,2]
[381822533,1756359076974,-400.0,0.00020738,2]
[381822534,1756359076983,-400.0,0.00020738,2]
[381822535,1756359076995,-400.0,0.00020738,2]
[381822536,1756359077005,-400.0,0.00020738,2]
[381822537,1756359077014,-400.0,0.00020738,2]
[381822538,1756359077023,-400.0,0.00020738,2]
[381822539,1756359077034,-400.0,0.00020738,2]
[381822540,1756359077043,-400.0,0.00020738,2]
[381822541,1756359077052,-400.0,0.00020738,2]
[381822542,1756359077061,-401.1,0.00020738,2]
[381822543,1756359077072,-400.0,0.00020738,2]
[381822544,1756359077081,-400.0,0.00020738,2]
[381822545,1756359077090,-400.0,0.00020738,2]
[381822546,1756359077099,-400.0,0.00020738,2]
[381822547,1756359077109,-400.0,0.00020738,2]
[381822548,1756359077119,-554.12,0.00020738,2]
[381822549,1756359077128,-208.88213916,0.00020738,2]
[381822550,1756359077137,-515.02858087,0.00020738,2]
[381822551,1756359077146,-322.51355337,0.00020738,2]
[381822552,1756359077155,-400.0,0.00020738,2]
[381822553,1756359077165,-241.68599403,0.00020738,2]
[381822554,1756359077174,-400.0,0.00020738,2]
[381822555,1756359077183,-400.0,0.00020738,2]
[381822556,1756359077192,-425.03,0.00020738,2]
[381822557,1756359077201,-408.84,0.00020738,2]
[381822558,1756359077211,-442.57,0.00020738,2]
[381822559,1756359077220,-1048.72,0.00020738,2]
[381822560,1756359077229,-400.0,0.00020738,2]
[381822561,1756359077239,-425.7,0.00020738,2]
[381822562,1756359077247,-440.3,0.00020738,2]
[381822563,1756359077256,-856.33,0.00020738,2]
[381822564,1756359077266,-400.0,0.00020738,2]
[381822565,1756359077275,-615.0,0.00020738,2]
[381822566,1756359077284,-400.0,0.00020738,2]
[381822567,1756359077294,-400.0,0.00020738,2]
[381822568,1756359077303,-400.0,0.00020738,2]
[381822569,1756359077313,-400.0,0.00020738,2]
[381822570,1756359077322,-409.55,0.00020738,2]
[381822571,1756359077332,-554.38,0.00020738,2]
[381822572,1756359077341,-466.59,0.00020738,2]
[381822573,1756359077351,-400.0,0.00020738,2]
[381822574,1756359077360,-440.02,0.00020738,2]
[381822575,1756359077369,-400.0,0.00020738,2]
[381822576,1756359077379,-400.0,0.00020738,2]
[381822577,1756359077388,-544.52,0.00020738,2]
[381822578,1756359077398,-584.93,0.00020738,2]
[381822579,1756359077408,-403.78,0.00020738,2]
[381822580,1756359077417,-1318.25,0.00020738,2]
[381822581,1756359077427,-400.0,0.00020738,2]
[381822582,1756359077436,-512.81,0.00020738,2]
[381822583,1756359077446,-691.02,0.00020738,2]
[381822584,1756359077455,-400.0,0.00020739,2]
[381822585,1756359077464,-400.0,0.00020739,2]
[381822586,1756359077474,-400.0,0.00020739,2]
[381822587,1756359077483,-545.81,0.00020739,2]
[381822588,1756359077491,-633.46,0.00020739,2]
[381822589,1756359077501,-400.0,0.00020739,2]
[381822590,1756359077510,-1042.04,0.00020739,2]
[381822591,1756359077519,-4735.76,0.00020739,2]
[381822592,1756359077528,-2496.66,0.00020739,2]
[381822593,1756359077537,-419.34,0.00020739,2]
[381822594,1756359077546,-400.0,0.00020739,2]
[381822595,1756359077555,-369.66208576,0.00020739,2]
[381822596,1756359077564,-1748.86,0.00020739,2]
[381822597,1756359077573,-400.0,0.00020739,2]
[381822598,1756359077583,-400.0,0.00020739,2]
[381822599,1756359077593,-400.0,0.00020739,2]
[381822600,1756359077602,-400.0,0.00020739,2]
[381822601,1756359077611,-400.0,0.00020739,2]
[381822602,1756359077686,-300.83892218,0.00020739,4]
[381822603,1756359077695,-222.9338422,0.00020739,2]
[381822604,1756359077704,-400.0,0.00020739,2]
[381822605,1756359077714,-1048.27,0.00020739,2]
[381822606,1756359077723,-400.0,0.00020739,2]
[381822607,1756359077732,-1535.82,0.00020739,2]
[381822608,1756359077742,-400.0,0.00020739,2]
[381822609,1756359077751,-400.0,0.00020739,2]
[381822610,1756359077760,-400.0,0.00020739,2]
[381822611,1756359077769,-400.0,0.00020739,2]
[381822612,1756359077778,-152.0,0.00020749,3]
[381822613,1756359077787,-2500.0,0.00020808,2]
[381822614,1756359077796,-900.0,0.00020808,2]
[381822615,1756359077806,-500.0,0.00020822,2]
[381822616,1756359077815,-450.0,0.00020822,2]
[381822617,1756359077824,-791.0,0.00020854,2]
[381822618,1756359077834,-428.81652522,0.0002087,2]
[381822619,1756359077843,-263.0873472,0.00020911,2]
[381822620,1756359077852,-670.01,0.00020911,2]
[381822621,1756359077861,-400.0,0.00020911,2]
[381822622,1756359077871,-150.724341,0.00020911,2]
[381822623,1756359077880,-237.375839,0.00020911,2]
[381822624,1756359077889,-468.69929,0.00020911,2]
[381822625,1756359077898,-551.72,0.00020911,2]
[381822626,1756359077907,-534.42,0.00020912,2]
[381822627,1756359077918,-400.0,0.00020912,2]
[381822628,1756359077929,-447.19,0.00020912,2]
[381822629,1756359077939,-1313.8,0.00020912,2]
[381822630,1756359077947,-400.0,0.00020912,2]
[381822631,1756359077957,-400.0,0.00020912,2]
[381822632,1756359077966,-437.31,0.00020913,2]
[381822633,1756359077975,-324.98,0.00020951,2]
[381822634,1756359077984,-975.0423532,0.00020998,2]
[381822635,1756359077999,-20000.0,0.00021,2]
[381822636,1756359078008,-1169.52619658,0.00021,2]
[381822637,1756359078017,-193.04151598,0.00021,2]
[381822638,1756359078027,-160.0,0.00021,7]
[381822639,1756359078039,-11355.00717275,0.00021,2]
[381822640,1756359078048,-205.5,0.00021,3]
[381822641,1756359078057,-2100.0,0.00021,6]
[381822642,1756359078069,-4000.0,0.00021,4]
[381822643,1756359078079,-178.02567502,0.00021012,2]
[381822644,1756359078088,-400.0,0.00021012,2]
[381822645,1756359078097,-400.0,0.00021012,2]
[381822646,1756359078107,-400.0,0.00021012,2]
[381822647,1756359078116,-400.0,0.00021012,2]
[381822648,1756359078126,-400.0,0.00021012,2]
[381822649,1756359078135,-400.0,0.00021012,2]
[381822650,1756359078144,-476.33,0.00021012,2]
[381822651,1756359078153,-466.51735287,0.00021012,2]
[381822652,1756359078163,-400.0,0.00021012,2]
[381822653,1756359078172,-400.0,0.00021012,2]
[381822654,1756359078181,-400.0,0.00021012,2]
[381822655,1756359078190,-400.0,0.00021012,2]
[381822656,1756359078199,-1717.97,0.00021012,2]
[381822657,1756359078208,-400.0,0.00021012,2]
[381822658,1756359078218,-400.0,0.00021012,2]
[381822659,1756359078227,-400.0,0.00021012,2]
[381822660,1756359078236,-400.0,0.00021012,2]
[381822661,1756359078245,-400.0,0.00021012,2]
[381822662,1756359078254,-400.0,0.00021012,2]
[381822663,1756359078263,-400.0,0.00021012,2]
[381822664,1756359078272,-400.0,0.00021012,2]
[381822665,1756359078282,-400.0,0.00021012,2]
[381822666,1756359078292,-400.0,0.00021012,2]
[381822667,1756359078302,-400.0,0.00021012,2]
[381822668,1756359078311,-1453.82,0.00021012,2]
[381822669,1756359078321,-400.0,0.00021012,2]
[381822670,1756359078330,-400.0,0.00021012,2]
[381822671,1756359078340,-400.0,0.00021012,2]
[381822672,1756359078350,-400.0,0.00021012,2]
[381822673,1756359078359,-400.0,0.00021012,2]
[381822674,1756359078369,-400.0,0.00021012,2]
[381822675,1756359078378,-400.0,0.00021012,2]
[381822676,1756359078388,-400.0,0.00021012,2]
[381822677,1756359078398,-400.0,0.00021012,2]
[381822678,1756359078407,-400.0,0.00021012,2]
[381822679,1756359078417,-400.0,0.00021012,2]
[381822680,1756359078427,-401.1,0.00021012,2]
[381822681,1756359078436,-400.0,0.00021012,2]
[381822682,1756359078446,-400.0,0.00021012,2]
[381822683,1756359078455,-400.0,0.00021012,2]
[381822684,1756359078464,-400.0,0.00021012,2]
[381822685,1756359078473,-400.0,0.00021012,2]
[381822686,1756359078483,-554.12,0.00021012,2]
[381822687,1756359078494,-400.0,0.00021012,2]
[381822688,1756359078503,-400.0,0.00021012,2]
[381822689,1756359078512,-400.0,0.00021012,2]
[381822690,1756359078521,-425.03,0.00021012,2]
[381822691,1756359078531,-408.84,0.00021012,2]
[381822692,1756359078540,-442.57,0.00021012,2]
[381822693,1756359078549,-1048.72,0.00021012,2]
[381822694,1756359078558,-400.0,0.00021012,2]
[381822695,1756359078567,-425.7,0.00021012,2]
[381822696,1756359078577,-440.3,0.00021012,2]
[381822697,1756359078586,-856.33,0.00021012,2]
[381822698,1756359078596,-400.0,0.00021012,2]
[381822699,1756359078605,-615.0,0.00021012,2]
[381822700,1756359078613,-400.0,0.00021012,2]
[381822701,1756359078622,-400.0,0.00021012,2]
[381822702,1756359078632,-400.0,0.00021012,2]
[381822703,1756359078642,-400.0,0.00021012,2]
[381822704,1756359078651,-409.55,0.00021012,2]
[381822705,1756359078660,-554.38,0.00021012,2]
[381822706,1756359078670,-466.59,0.00021012,2]
[381822707,1756359078679,-400.0,0.00021012,2]
[381822708,1756359078689,-440.02,0.00021012,2]
[381822709,1756359078698,-400.0,0.00021012,2]
[381822710,1756359078708,-400.0,0.00021012,2]
[381822711,1756359078717,-544.52,0.00021012,2]
[381822712,1756359078726,-584.93,0.00021012,2]
[381822713,1756359078736,-403.78,0.00021012,2]
[381822714,1756359078746,-1318.25,0.00021012,2]
[381822715,1756359078755,-400.0,0.00021012,2]
[381822716,1756359078765,-512.81,0.00021012,2]
[381822717,1756359078774,-691.02,0.00021012,2]
[381822718,1756359078784,-1750.97575102,0.00021012,2]
[381822719,1756359078793,-3000.0,0.00021012,2]
[381822720,1756359078802,-400.0,0.00021013,2]
[381822721,1756359078811,-528.1817718,0.00021013,2]
[381822722,1756359078820,-400.0,0.00021013,2]
[381822723,1756359078830,-545.81,0.00021013,2]
[381822724,1756359078839,-633.46,0.00021013,2]
[381822725,1756359078848,-400.0,0.00021013,2]
[381822726,1756359078858,-1042.04,0.00021013,2]
[381822727,1756359078867,-4735.76,0.00021013,2]
[381822728,1756359078876,-2496.66,0.00021013,2]
[381822729,1756359078885,-419.34,0.00021013,2]
[381822730,1756359078894,-400.0,0.00021013,2]
[381822731,1756359078904,-1748.86,0.00021013,2]
[381822732,1756359078913,-400.0,0.00021013,2]
[381822733,1756359078923,-400.0,0.00021013,2]
[381822734,1756359078933,-400.0,0.00021013,2]
[381822735,1756359078943,-400.0,0.00021013,2]
[381822736,1756359078952,-400.0,0.00021013,2]
[381822737,1756359078961,-400.0,0.00021013,2]
[381822738,1756359078972,-1048.27,0.00021013,2]
[381822739,1756359078982,-400.0,0.00021013,2]
[381822740,1756359078995,-1535.82,0.00021013,2]
[381822741,1756359079004,-400.0,0.00021013,2]
[381822742,1756359079013,-400.0,0.00021013,2]
[381822743,1756359079023,-400.0,0.00021013,2]
[381822744,1756359079033,-400.0,0.00021013,2]
[381822745,1756359079043,-791.0,0.00021128,2]
[381822746,1756359079053,-670.01,0.00021185,2]
[381822747,1756359079062,-344.31068078,0.00021185,2]
[381822748,1756359079072,-551.72,0.00021185,2]
[381822749,1756359079081,-534.42,0.00021186,2]
[381822750,1756359079091,-400.0,0.00021186,2]
[381822751,1756359079100,-447.19,0.00021186,2]
[381822752,1756359079110,-1313.8,0.00021186,2]
[381822753,1756359079119,-204.96524445,0.00021186,2]
[381822754,1756359079128,-400.0,0.00021186,2]
[381822755,1756359079137,-437.31,0.00021187,2]
[381822756,1756359079146,-277.35679052,0.00021189,2]
[381822757,1756359079155,-2000.0,0.000212,2]
[381822758,1756359079165,-1052.42506843,0.0002126,2]
[381822759,1756359079175,-400.0,0.00021286,2]
[381822760,1756359079185,-400.0,0.00021286,2]
[381822761,1756359079194,-400.0,0.00021286,2]
[381822762,1756359079203,-400.0,0.00021286,2]
[381822763,1756359079212,-400.0,0.00021286,2]
[381822764,1756359079221,-400.0,0.00021286,2]
[381822765,1756359079231,-476.33,0.00021286,2]
[381822766,1756359079239,-400.0,0.00021286,2]
[381822767,1756359079249,-400.0,0.00021286,2]
[381822768,1756359079259,-400.0,0.00021286,2]
[381822769,1756359079271,-400.0,0.00021286,2]
[381822770,1756359079287,-1717.97,0.00021286,2]
[381822771,1756359079296,-400.0,0.00021286,2]
[381822772,1756359079306,-400.0,0.00021286,2]
[381822773,1756359079315,-400.0,0.00021286,2]
[381822774,1756359079324,-400.0,0.00021286,2]
[381822775,1756359079334,-378.96336024,0.00021286,2]
[381822776,1756359079343,-537.76637271,0.00021286,2]
[381822777,1756359079352,-400.0,0.00021286,2]
[381822778,1756359079361,-400.0,0.00021286,2]
[381822779,1756359079371,-400.0,0.00021286,2]
[381822780,1756359079380,-400.0,0.00021286,2]
[381822781,1756359079389,-400.0,0.00021286,2]
[381822782,1756359079398,-1453.82,0.00021286,2]
[381822783,1756359079408,-400.0,0.00021286,2]
[381822784,1756359079417,-400.0,0.00021286,2]
[381822785,1756359079427,-400.0,0.00021286,2]
[381822786,1756359079437,-400.0,0.00021286,2]
[381822787,1756359079446,-400.0,0.00021286,2]
[381822788,1756359079455,-400.0,0.00021286,2]
[381822789,1756359079464,-325.50243823,0.00021286,2]
[381822790,1756359079474,-402.92752021,0.00021286,2]
[381822791,1756359079483,-400.0,0.00021286,2]
[381822792,1756359079492,-400.0,0.00021286,2]
[381822793,1756359079500,-210.48102302,0.00021286,2]
[381822794,1756359079510,-401.1,0.00021286,2]
[381822795,1756359079519,-400.0,0.00021286,2]
[381822796,1756359079527,-547.40594129,0.00021286,2]
[381822797,1756359079537,-400.0,0.00021286,2]
[381822798,1756359079546,-461.46977965,0.00021286,2]
[381822799,1756359079556,-400.0,0.00021286,2]
[381822800,1756359079565,-554.12,0.00021286,2]
[381822801,1756359079574,-400.0,0.00021286,2]
[381822802,1756359079584,-400.0,0.00021286,2]
[381822803,1756359079593,-400.0,0.00021286,2]
[381822804,1756359079603,-425.03,0.00021286,2]
[381822805,1756359079612,-408.84,0.00021286,2]
[381822806,1756359079621,-442.57,0.00021286,2]
[381822807,1756359079630,-1048.72,0.00021286,2]
[381822808,1756359079639,-400.0,0.00021286,2]
[381822809,1756359079648,-425.7,0.00021286,2]
[381822810,1756359079657,-440.3,0.00021286,2]
[381822811,1756359079667,-856.33,0.00021286,2]
[381822812,1756359079677,-400.0,0.00021286,2]
[381822813,1756359079686,-615.0,0.00021286,2]
[381822814,1756359079695,-400.0,0.00021286,2]
[381822815,1756359079705,-400.0,0.00021286,2]
[381822816,1756359079715,-400.0,0.00021286,2]
[381822817,1756359079724,-400.0,0.00021286,2]
[381822818,1756359079733,-409.55,0.00021286,2]
[381822819,1756359079742,-554.38,0.00021286,2]
[381822820,1756359079752,-466.59,0.00021286,2]
[381822821,1756359079762,-402.42070749,0.00021286,2]
[381822822,1756359079771,-313.65448256,0.00021286,2]
[381822823,1756359079781,-440.02,0.00021286,2]
[381822824,1756359079790,-400.0,0.00021286,2]
[381822825,1756359079799,-400.0,0.00021286,2]
[381822826,1756359079808,-544.52,0.00021286,2]
[381822827,1756359079818,-584.93,0.00021286,2]
[381822828,1756359079827,-1318.25,0.00021286,2]
[381822829,1756359079836,-400.0,0.00021286,2]
[381822830,1756359079845,-512.81,0.00021286,2]
[381822831,1756359079855,-691.02,0.00021286,2]
[381822832,1756359079864,-400.0,0.00021287,2]
[381822833,1756359079873,-400.0,0.00021287,2]
[381822834,1756359079882,-545.81,0.00021287,2]
[381822835,1756359079891,-633.46,0.00021287,2]
[381822836,1756359079899,-400.0,0.00021287,2]
[381822837,1756359079908,-1042.04,0.00021287,2]
[381822838,1756359079918,-2496.66,0.00021287,2]
[381822839,1756359079929,-419.34,0.00021287,2]
[381822840,1756359079938,-400.0,0.00021287,2]
[381822841,1756359079947,-1748.86,0.00021287,2]
[381822842,1756359079957,-400.0,0.00021287,2]
[381822843,1756359079966,-400.0,0.00021287,2]
[381822844,1756359079976,-400.0,0.00021287,2]
[381822845,1756359079985,-400.0,0.00021287,2]
[381822846,1756359080000,-507.71579407,0.00021287,2]
[381822847,1756359080009,-400.0,0.00021287,2]
[381822848,1756359080020,-1048.27,0.00021287,2]
[381822849,1756359080031,-400.0,0.00021287,2]
[381822850,1756359080041,-1535.82,0.00021287,2]
[381822851,1756359080051,-393.92865704,0.00021287,2]
[381822852,1756359080061,-400.0,0.00021287,2]
[381822853,1756359080071,-400.0,0.00021287,2]
[381822854,1756359080082,-400.0,0.00021287,2]
[381822855,1756359080091,-1223.0040735,0.00021305,2]
[381822856,1756359080104,-461.10935501,0.00021366,2]
[381822857,1756359080114,-491.5265979,0.0002137,2]
[381822858,1756359080123,-1956.87242264,0.00021384,2]
[381822859,1756359080133,-791.0,0.00021402,2]
[381822860,1756359080142,-670.01,0.00021459,2]
[381822861,1756359080152,-551.72,0.00021459,2]
[381822862,1756359080162,-534.42,0.0002146,2]
[381822863,1756359080171,-400.0,0.0002146,2]
[381822864,1756359080182,-447.19,0.0002146,2]
[381822865,1756359080191,-1313.8,0.0002146,2]
[381822866,1756359080201,-334.5350371,0.0002146,2]
[381822867,1756359080211,-437.31,0.00021461,2]
[381822868,1756359080220,-200.0,0.0002151,7]
[381822869,1756359080231,-435.067482,0.0002156,2]
[381822870,1756359080240,-400.0,0.0002156,2]
[381822871,1756359080249,-240.01038961,0.0002156,2]
[381822872,1756359080259,-400.0,0.0002156,2]
[381822873,1756359080268,-400.0,0.0002156,2]
[381822874,1756359080278,-400.0,0.0002156,2]
[381822875,1756359080287,-476.33,0.0002156,2]
[381822876,1756359080297,-406.44027447,0.0002156,2]
[381822877,1756359080306,-400.0,0.0002156,2]
[381822878,1756359080316,-400.0,0.0002156,2]
[381822879,1756359080325,-400.0,0.0002156,2]
[381822880,1756359080335,-1717.97,0.0002156,2]
[381822881,1756359080344,-400.0,0.0002156,2]
[381822882,1756359080354,-400.0,0.0002156,2]
[381822883,1756359080363,-400.0,0.0002156,2]
[381822884,1756359080373,-209.78009155,0.0002156,2]
[381822885,1756359080382,-378.52600706,0.0002156,2]
[381822886,1756359080391,-400.0,0.0002156,2]
[381822887,1756359080402,-400.0,0.0002156,2]
[381822888,1756359080411,-400.0,0.0002156,2]
[381822889,1756359080422,-394.98876581,0.0002156,2]
[381822890,1756359080432,-1453.82,0.0002156,2]
[381822891,1756359080441,-400.0,0.0002156,2]
[381822892,1756359080452,-400.0,0.0002156,2]
[381822893,1756359080462,-400.0,0.0002156,2]
[381822894,1756359080471,-400.0,0.0002156,2]
[381822895,1756359080481,-400.0,0.0002156,2]
[381822896,1756359080491,-400.0,0.0002156,2]
[381822897,1756359080500,-400.0,0.0002156,2]
[381822898,1756359080510,-400.0,0.0002156,2]
[381822899,1756359080520,-401.1,0.0002156,2]
[381822900,1756359080530,-400.0,0.0002156,2]
[381822901,1756359080540,-400.0,0.0002156,2]
[381822902,1756359080550,-190.2851798,0.0002156,2]
[381822903,1756359080560,-554.12,0.0002156,2]
[381822904,1756359080570,-364.36260254,0.0002156,2]
[381822905,1756359080580,-400.0,0.0002156,2]
[381822906,1756359080590,-400.0,0.0002156,2]
[381822907,1756359080600,-425.03,0.0002156,2]
[381822908,1756359080609,-408.84,0.0002156,2]
[381822909,1756359080619,-442.57,0.0002156,2]
[381822910,1756359080629,-1048.72,0.0002156,2]
[381822911,1756359080639,-276.46187582,0.0002156,2]
[381822912,1756359080648,-425.7,0.0002156,2]
[381822913,1756359080657,-440.3,0.0002156,2]
[381822914,1756359080667,-856.33,0.0002156,2]
[381822915,1756359080678,-400.0,0.0002156,2]
[381822916,1756359080688,-615.0,0.0002156,2]
[381822917,1756359080697,-400.0,0.0002156,2]
[381822918,1756359080707,-400.0,0.0002156,2]
[381822919,1756359080717,-400.0,0.0002156,2]
[381822920,1756359080727,-400.0,0.0002156,2]
[381822921,1756359080736,-409.55,0.0002156,2]
[381822922,1756359080746,-554.38,0.0002156,2]
[381822923,1756359080756,-466.59,0.0002156,2]
[381822924,1756359080766,-440.02,0.0002156,2]
[381822925,1756359080776,-211.34630096,0.0002156,2]
[381822926,1756359080786,-400.0,0.0002156,2]
[381822927,1756359080796,-544.52,0.0002156,2]
[381822928,1756359080806,-584.93,0.0002156,2]
[381822929,1756359080816,-1318.25,0.0002156,2]
[381822930,1756359080826,-400.0,0.0002156,2]
[381822931,1756359080836,-512.81,0.0002156,2]
[381822932,1756359080846,-691.02,0.0002156,2]
[381822933,1756359080856,-3500.0,0.0002156,2]
[381822934,1756359080865,-400.0,0.00021561,2]
[381822935,1756359080876,-400.0,0.00021561,2]
[381822936,1756359080886,-545.81,0.00021561,2]
[381822937,1756359080896,-633.46,0.00021561,2]
[381822938,1756359080906,-400.0,0.00021561,2]
[381822939,1756359080916,-1042.04,0.00021561,2]
[381822940,1756359080927,-2496.66,0.00021561,2]
[381822941,1756359080936,-419.34,0.00021561,2]
[381822942,1756359080947,-400.0,0.00021561,2]
[381822943,1756359080956,-1748.86,0.00021561,2]
[381822944,1756359080966,-369.20306329,0.00021561,2]
[381822945,1756359080976,-400.0,0.00021561,2]
[381822946,1756359080986,-463.24264268,0.00021561,2]
[381822947,1756359081001,-400.0,0.00021561,2]
[381822948,1756359081011,-400.0,0.00021561,2]
[381822949,1756359081022,-1048.27,0.00021561,2]
[381822950,1756359081034,-400.0,0.00021561,2]
[381822951,1756359081044,-1535.82,0.00021561,2]
[381822952,1756359081054,-237.25164339,0.00021561,2]
[381822953,1756359081065,-400.0,0.00021561,2]
[381822954,1756359081076,-400.0,0.00021561,2]
[381822955,1756359081086,-4714.30121,0.0002159,2]
[381822956,1756359081096,-600.0,0.00021616,2]
[381822957,1756359081106,-791.0,0.00021676,2]
[381822958,1756359081116,-670.01,0.00021733,2]
[381822959,1756359081126,-551.72,0.00021733,2]
[381822960,1756359081137,-534.42,0.00021734,2]
[381822961,1756359081147,-400.0,0.00021734,2]
[381822962,1756359081158,-447.19,0.00021734,2]
[381822963,1756359081168,-1313.8,0.00021734,2]
[381822964,1756359081180,-437.31,0.00021735,2]
[381822965,1756359081191,-469.47,0.00021744,2]
[381822966,1756359081203,-799.74,0.00021744,2]
[381822967,1756359081212,-799.74,0.00021744,2]
[381822968,1756359081223,-799.74,0.00021744,2]
[381822969,1756359081232,-806.01,0.00021744,2]
[381822970,1756359081242,-927.59,0.00021744,2]
[381822971,1756359081254,-60029.33981206,0.000218,7]
[381822972,1756359082973,-199.0,0.00017477,2]
[381822973,1756359083004,-24.1661,0.00017839,2]
[381822974,1756359083338,-300.0,0.00017897,2]
[381822975,1756359083347,-75.8339,0.00017898,2]
[381822978,1756359105578,-198.15,0.00013699,2]
[381822982,1756359111529,-316.75717689,0.00016356,2]
[381822983,1756359114771,-183.24282311,0.00016356,2]
[381822984,1756359114808,-350.93445786,0.00016356,2]
[381822985,1756359116991,-149.06554214,0.00016356,2]
[381822986,1756359117028,-100.93445786,0.00016356,2]
[381822987,1756359127281,-300.0,0.00016355,2]
[381822988,1756359143745,-199.0,0.00016355,2]
[381822990,1756359151863,-477.8339,0.00016355,2]
[381822991,1756359160056,-237.59309317,0.00016355,2]
[381822992,1756359160107,-24.81381366,0.00016355,2]
[381822993,1756359167991,-500.0,0.00016355,2]
[381822996,1756359176322,-5.67312557,0.00016355,2]
[381822997,1756359176351,-218.18669739,0.00016355,2]
[381822998,1756359176384,-9.51864104,0.00016355,2]
[381823002,1756359184405,-150.0,0.00016354,2]
[381823003,1756359184464,-237.12808635,0.00016355,2]
[381823006,1756359192341,-12.87191365,0.00016355,2]
[381823007,1756359192374,-174.2561727,0.00016355,2]
[381823008,1756359200727,-150.0,0.00016355,2]
[381823009,1756359209686,-150.0,0.00016355,2]
[381823010,1756359217678,-25.7438273,0.00016355,2]
[381823011,1756359217714,-98.5123454,0.00016355,2]
[381823012,1756359226021,-150.00000001,0.00016355,2]
[381823013,1756359233686,-150.0,0.00016355,2]
[381823014,1756359242023,-150.0,0.00016354,2]
[381823016,1756359249972,-101.0,0.00016354,2]
[381823017,1756359249995,-49.0,0.00016354,2]
[381823019,1756359258379,-101.48765459,0.00016355,2]
[381823020,1756359258412,-297.02469082,0.00016355,2]
[381823021,1756359266732,-160.0,0.00016355,2]
[381823055,1756359274888,-371.34085746,0.00016354,2]
[381823056,1756359274918,-97.92454817,0.00016354,2]
[381823057,1756359274964,-61.46918874,0.00016354,2]
[381823084,1756359283255,-166.0,0.00016354,2]
[381823085,1756359283277,-334.0,0.00016354,2]
[381823164,1756359291607,-272.0,0.00016354,2]
[381823254,1756359299989,-228.0,0.00016354,2]
[381823255,1756359300022,-244.0,0.00016354,2]
[381823256,1756359300063,-256.0,0.00016354,2]
[381823348,1756359308098,-741.3802873,0.00016353,2]
[381823349,1756359316057,-200.0,0.00016353,2]
[381823395,1756359324059,-90.3802873,0.00016353,2]
[381823397,1756359324091,-168.2394254,0.00016353,2]
[381823462,1756359331632,-500.0,0.00016354,2]
[381823463,1756359339966,-500.0,0.00016354,2]
[381823464,1756359348148,-500.0,0.00016354,2]
[381823465,1756359355926,-500.0,0.00016354,2]
[381823499,1756359363836,-151.0,0.00016353,2]
[381824642,1756360167716,-160.0,0.00013699,2]
[381824645,1756360231564,-28.24,0.00013699,2]
[381824646,1756360231574,-250.0,0.00016297,2]
[381824647,1756360231583,-1200.0,0.00016343,2]